[Event "German Bundesliga 2021-22"]
[Site "Germany"]
[Date "2022.04.10"]
[Round "4.10"]
[White "Lupulescu, Constantin"]
[Black "Piorun, Kacper"]
[Result "1/2-1/2"]
[ECO "A06"]
[WhiteElo "2620"]
[BlackElo "2641"]
[Annotator "TA"]
[PlyCount "40"]
[EventDate "2022.03.05"]
[EventType "team-tourn"]
[EventCountry "GER"]
[SourceTitle "playchess.com"]
[Source "ChessBase"]
[SourceQuality "1"]
[TimeControl "40/5400+30:1800+30"]

{[%evp 14,40,34,29,33,37,38,30,34,32,32,27,29,29,51,39,33,35,42,42,41,39,45,0,59,0,44,0,53]} 1. Nf3 {[%emt 0:00:00]} d5 {[%emt 0:00:00]} 2. e3 {[%emt 0:00:00]} Nf6 {[%emt 0:00:00]} 3. c4 {[%emt 0:00:00]} c6 {[%emt 0:00:00]} 4. d4 {[%emt 0:00:00]} g6 {[%emt 0:00:00]} 5. Be2 {[%emt 0:00:00][%cal Bf1e2,Be2f3,Bf3g2][%mdl 32]} Bg7 {[%emt 0:00:00]} 6. O-O {[%emt 0:00:00]} O-O {[%emt 0:00:00]} 7. Nc3 {[%emt 0:06:31]} a6 $1 {[%emt 0:00:15][%mdl 4] is currently scoring better than 7...Bg4.} 8. b3 {[%emt 0:02:51]} Bg4 {[%emt 0:09:59] D94: Grünfeld: 4 Nf3 Bg7 5 e3.} 9. h3 {[%emt 0:02:29]} Bxf3 {[%emt 0:00:13]} 10. Bxf3 {[%emt 0:00:03]} e6 {[%emt 0:05:58] White has an edge.} 11. Bb2 {[%emt 0:03:08]} Re8 {[%emt 0:02:31]} 12. Qe2 {[%emt 0:03:51]} Nbd7 {[%emt 0:00:12]} 13. Rfd1 {[%emt 0:02:00]} Qb6 {[%emt 0:02:40]} 14. g3 {[%emt 0:07:14] [#]} Rad8 $146 {[%emt 0:06:05]} ({Predecessor:} 14... a5 15. Bg2 Qa7 16. a4 Qb6 17. Qc2 Nb8 18. Ne2 Na6 19. Nf4 Nb4 20. Qe2 Nd7 {½-½ (68) Pashikian,A (2605)-Kamsky,G (2677) Moscow 2019}) 15. Bg2 {[%emt 0:01:54]} Qc7 {[%emt 0:05:49]} 16. Rac1 {[%emt 0:01:01]} Qb8 {[%emt 0:02:13]} 17. Qc2 {[%emt 0:17:04]} Rc8 {[%emt 0:09:24]} 18. Qe2 {[%emt 0:03:55]} Rcd8 {[%emt 0:00:39]} 19. Qc2 {[%emt 0:05:59]} Rc8 {[%emt 0:00:12]} 20. Qe2 {[%emt 0:05:02]} Rcd8 {[%emt 0:00:18] Weighted Error Value: White=0.13 (very precise) /Black=0.03 (flawless)} 1/2-1/2

[Event "German Bundesliga 2021-22"]
[Site "Germany"]
[Date "2022.04.10"]
[Round "4.11"]
[White "Gajewski, Grzegorz"]
[Black "Edouard, Romain"]
[Result "1/2-1/2"]
[ECO "D20"]
[WhiteElo "2589"]
[BlackElo "2591"]
[Annotator "TA"]
[PlyCount "98"]
[EventDate "2022.03.05"]
[EventType "team-tourn"]
[EventCountry "GER"]
[SourceTitle "playchess.com"]
[Source "ChessBase"]
[SourceQuality "1"]
[TimeControl "40/5400+30:1800+30"]

{[%evp 14,98,15,16,20,25,22,12,22,14,15,14,16,20,25,28,29,13,14,-9,0,-53,0,0,35,32,37,0,40,0,10,12,14,0,13,13,18,0,0,0,0,0,0,0,37,18,28,0,0,0,0,0,81,81,75,35,61,35,35,0,0,0,0,0,0,0,0,0,0,0,0,0,0,0,0,0,0,0,0,0,0,0,0,0,0,0,0]} 1. d4 {[%emt 0:00:00]} d5 {[%emt 0:00:00]} 2. c4 {[%emt 0:00:00]} dxc4 {[%emt 0:00:00]} 3. e4 {[%emt 0:00:00][%cal Be2e4,Be4e5][%mdl 32]} Nf6 {[%emt 0:00:00]} 4. e5 {[%emt 0:00:00]} Nd5 {[%emt 0:00:00]} 5. Bxc4 {[%emt 0:00:00]} Nb6 {[%emt 0:00:00]} 6. Bd3 {[%emt 0:00:00]} Nc6 {[%emt 0:00:00]} 7. Be3 {[%emt 0:00:00]} Nb4 {[%emt 0:00:00]} 8. Be4 {[%emt 0:00:00]} f5 {[%emt 0:00:00] [#] D20: Queen's Gambit Accepted: 3 e3 and 3 e4.} 9. a3 $1 {[%emt 0:00:00][%mdl 4] is more profitable than 9.exf6 at the moment.} N4d5 {[%emt 0:00:00]} 10. Bxd5 {[%emt 0:00:00]} Nxd5 {[%emt 0:00:00]} 11. Ne2 {[%emt 0:00:00]} c6 {[%emt 0:00:00] [#]} 12. Nbc3 $146 {[%emt 0:00:00]} ({Predecessor:} 12. h4 Be6 13. h5 Qd7 14. Qc2 O-O-O 15. Nbc3 Kb8 16. Rc1 Rc8 17. Nf4 Nxf4 18. Bxf4 Qxd4 {½-½ (32) Morozov,D (2481)-Volodarsky,Y (2376) ICCF email 2020}) 12... Nxe3 {[%emt 0:00:00]} 13. fxe3 {[%emt 0:00:00]} g6 {[%emt 0:00:00]} 14. Nf4 {[%emt 0:06:28]} Bh6 {[%emt 0:00:00]} 15. Qf3 {[%emt 0:00:05]} Qb6 {[%emt 0:00:00]} 16. Nce2 {[%emt 0:08:07]} Qb3 {[%emt 0:05:09]} 17. Qh3 {[%emt 0:07:39]} (17. O-O $11) 17... Bg7 {[%emt 0:03:40]} ({Black should try} 17... Bxf4 $15 18. exf4 (18. Nxf4 g5 $15) 18... Qxh3 19. gxh3 Kf7) 18. O-O $11 {[%emt 0:02:07]} Qf7 {[%emt 0:05:15]} 19. Qg3 {[%emt 0:04:28]} Bh6 {[%emt 0:02:07]} 20. Qh3 {[%emt 0:10:16]} Bg7 {[%emt 0:05:35]} 21. Nc3 {[%emt 0:04:36]} O-O {[%emt 0:03:13]} 22. Qg3 {[%emt 0:06:26]} Bh6 {[%emt 0:02:14]} 23. h4 {[%emt 0:01:45]} Be6 {[%emt 0:01:55]} 24. Nh3 {[%emt 0:06:14]} Qg7 {[%emt 0:02:00]} 25. Ng5 {[%emt 0:05:04]} Bxg5 {[%emt 0:00:33]} 26. hxg5 {[%emt 0:10:36]} Rad8 {[%emt 0:02:17]} 27. Rf4 {[%emt 0:04:43]} Rd7 {[%emt 0:02:13]} 28. b4 {[%emt 0:04:07]} Rfd8 {[%emt 0:03:20]} 29. Rc1 {[%emt 0:00:32]} b6 {[%emt 0:01:46]} 30. Ne2 {[%emt 0:02:50]} Bd5 {[%emt 0:00:23]} 31. Rf2 {[%emt 0:00:10][%cal Bf4f2,Bf2c2,Bc2c3][%mdl 32]} e6 {[%emt 0:00:34]} 32. Nf4 {[%emt 0:00:20]} Qe7 {[%emt 0:01:45]} (32... Rc7 $1 $11) 33. Rfc2 $16 {[%emt 0:00:22]} Qe8 {[%emt 0:01:45]} 34. Qf2 {[%emt 0:08:47] &Bianco is more active.} Rc7 {[%emt 0:08:01]} 35. Rc3 {[%emt 0:03:14]} Rdc8 {[%emt 0:00:29]} 36. a4 {[%emt 0:07:26][%cal Ob4b5]} Qe7 {[%emt 0:00:54][%csl LRb4,LRg5] The position is equal.} 37. b5 {[%emt 0:00:47]} c5 {[%emt 0:05:54]} 38. dxc5 {[%emt 0:00:56]} Rxc5 {[%emt 0:00:06]} 39. Qd2 {[%emt 0:00:48]} Kf7 {[%emt 0:05:58]} 40. Qd4 {[%emt 0:01:01]} Rxc3 {[%emt 0:01:33]} (40... Qxg5 $2 41. Nxd5 exd5 42. Rxc5 bxc5 43. Rxc5 (43. Qxd5+ Kg7 $11) 43... Rxc5 44. Qxc5 $18) 41. Rxc3 {[%emt 0:30:18]} Rxc3 {[%emt 0:30:03]} 42. Qxc3 {[%emt 0:00:07]} Qxg5 {[%emt 0:00:13]} 43. Qc8 {[%emt 0:00:00]} Qg3 {[%emt 0:00:00]} 44. Qc7+ {[%emt 0:00:00]} Kg8 {[%emt 0:00:00]} 45. Qb8+ {[%emt 0:00:00]} Kg7 {[%emt 0:00:00]} 46. Qxa7+ {[%emt 0:00:00]} Kh6 $1 {[%emt 0:00:00]} 47. Qxb6 {[%emt 0:00:00]} g5 {[%emt 0:00:00]} 48. Nxd5 {[%emt 0:00:00]} Qe1+ {[%emt 0:00:00]} 49. Kh2 {[%emt 0:00:00]} Qh4+ {[%emt 0:00:00] Weighted Error Value: White=0.09 (flawless) /Black=0.08 (flawless)} 1/2-1/2

[Event "German Bundesliga 2021-22"]
[Site "Germany"]
[Date "2022.04.10"]
[Round "4.11"]
[White "Tomczak, Jacek"]
[Black "Salgado Lopez, Ivan"]
[Result "1/2-1/2"]
[ECO "B50"]
[WhiteElo "2584"]
[BlackElo "2611"]
[Annotator "TA"]
[PlyCount "53"]
[EventDate "2022.03.05"]
[EventType "team-tourn"]
[EventCountry "GER"]
[SourceTitle "playchess.com"]
[Source "ChessBase"]
[SourceQuality "1"]
[TimeControl "40/5400+30:1800+30"]

{[%evp 9,53,34,28,-8,-7,-16,-14,-34,-34,-38,-32,-33,-30,-43,-37,-45,-54,-68,-49,-33,-25,-45,-45,-60,20,17,19,14,20,-35,60,76,67,73,64,75,58,58,54,57,61,45,102,43,34,-44]} 1. e4 {[%emt 0:00:00]} c5 {[%emt 0:00:00]} 2. Nf3 {[%emt 0:00:00]} d6 {[%emt 0:00:00]} 3. c3 {[%emt 0:00:00]} Nf6 {[%emt 0:00:00]} 4. Be2 {[%emt 0:00:00]} Bg4 {[%emt 0:00:00]} 5. O-O {[%emt 0:00:00]} e6 {[%emt 0:00:00]} 6. d4 {[%emt 0:19:00] B50: Sicilian: 2...d6, Miscellaneous.} Nxe4 {[%emt 0:00:00]} 7. d5 {[%emt 0:14:31] [#] Qa4+ is the strong threat.} Nf6 $146 {[%emt 0:00:48]} ({Predecessor:} 7... Nd7 8. dxe6 fxe6 9. Re1 Be7 10. Bd3 Nef6 11. h3 Bxf3 12. Qxf3 O-O 13. Rxe6 Ne5 {0-1 (29) Plenca,J (2323)-Levin,E (2486) Rijeka 2010}) 8. dxe6 {[%emt 0:04:39] The position is equal.} Bxe6 {[%emt 0:01:39]} 9. Ng5 {[%emt 0:00:36]} Nc6 {[%emt 0:07:14]} 10. Nxe6 {[%emt 0:05:44]} fxe6 {[%emt 0:00:23]} 11. Bg5 {[%emt 0:00:05]} Qd7 {[%emt 0:03:38]} 12. Bxf6 {[%emt 0:03:24]} gxf6 {[%emt 0:00:24]} 13. Bh5+ {[%emt 0:00:03]} Kd8 $1 {[%emt 0:09:41][%cal Be8d8,Bd8c7,Bc7b6][%mdl 32]} 14. Na3 {[%emt 0:02:30][%cal Bb1a3,Ba3b5,Bb5d4][%mdl 32]} d5 {[%emt 0:01:18]} 15. Qe2 {[%emt 0:01:50]} Kc7 {[%emt 0:13:19]} 16. Rfe1 {[%emt 0:22:02]} c4 {[%emt 0:15:38]} (16... e5 $1 $15) 17. Nb5+ $11 {[%emt 0:06:24]} Kb6 {[%emt 0:02:17]} 18. Nd4 {[%emt 0:00:26]} e5 {[%emt 0:02:18]} 19. Bg4 {[%emt 0:02:49] [#]} Qf7 {[%emt 0:12:25]} ({Black should play} 19... Nxd4 $1 $15 20. cxd4 (20. Bxd7 Nxe2+ 21. Rxe2 Rd8 $17) 20... Qc7) 20. Nxc6 $14 {[%emt 0:01:33]} bxc6 {[%emt 0:00:13]} 21. b3 {[%emt 0:00:09] And now bxc4 would win.} Bc5 {[%emt 0:01:36]} 22. bxc4 {[%emt 0:01:23]} dxc4 {[%emt 0:01:34]} 23. Qf3 {[%emt 0:04:10][%cal Oe1e5] Hoping for Rxe5!} h5 {[%emt 0:02:54]} 24. Bf5 {[%emt 0:02:25][%mdl 1024] White has compensation.} Rad8 {[%emt 0:02:42]} 25. Red1 {[%emt 0:00:52]} h4 {[%emt 0:02:51]} (25... Kc7 $14) 26. h3 {[%emt 0:00:40]} ({Don't take} 26. Rab1+ Kc7 $14) (26. a4 $16) 26... Kc7 {[%emt 0:01:21]} 27. Be4 {[%emt 0:01:01] Against Rd5.  Weighted Error Value: White=0.11 (very precise) /Black=0.15 (very precise)} (27. a4 $14) 1/2-1/2

[Event "German Bundesliga 2021-22"]
[Site "Germany"]
[Date "2022.04.10"]
[Round "4.11"]
[White "Bogner, Sebastian"]
[Black "L'Ami, Erwin"]
[Result "0-1"]
[ECO "D38"]
[WhiteElo "2573"]
[BlackElo "2622"]
[Annotator "TA"]
[PlyCount "130"]
[EventDate "2022.03.05"]
[EventType "team-tourn"]
[EventCountry "GER"]
[SourceTitle "playchess.com"]
[Source "ChessBase"]
[SourceQuality "1"]
[TimeControl "40/5400+30:1800+30"]

{[%evp 11,130,13,12,9,23,13,13,17,19,0,16,0,19,0,-6,22,47,48,50,48,61,44,79,79,93,100,127,129,93,102,106,74,100,96,92,105,94,70,103,109,103,54,56,72,104,106,102,111,110,101,97,73,72,0,0,0,0,0,0,0,394,112,110,-45,-37,-89,-87,-95,-54,-231,-71,-252,-75,-75,-81,-77,-74,-107,-89,-81,-73,-74,-74,-81,-81,-81,-81,-108,-108,-109,-109,-127,-127,-127,-127,-247,-247,-247,-247,-247,-247,-1325,-1155,-12831,-12832,-12834,-12834,-12839,-12839,-12838,-12839,-12840,-12841,-12843,-12843,-12844,-12845,-12845,-12846,-12847,-12846]} 1. d4 {[%emt 0:00:00] ChessBase II} Nf6 {[%emt 0:00:00]} 2. c4 {[%emt 0:00:00]} e6 {[%emt 0:00:00]} 3. Nf3 {[%emt 0:00:00]} d5 {[%emt 0:00:00]} 4. Nc3 {[%emt 0:00:00]} Bb4 {[%emt 0:00:00]} 5. Qa4+ {[%emt 0:00:00]} Nc6 {[%emt 0:00:00]} 6. e3 {[%emt 0:00:00]} O-O {[%emt 0:00:00]} 7. Qc2 {[%emt 0:00:00] D38: Queen's Gambit Declined: Ragozin Defence (4 Nf3 Bb4).} Ne7 {[%emt 0:00:00]} 8. a3 {[%emt 0:04:08] has lost popularity (8.Bd2).} Bxc3+ {[%emt 0:00:00]} 9. Qxc3 {[%emt 0:00:17] The position is equal.} b6 {[%emt 0:00:00] [#]} 10. b4 $5 $146 {[%emt 0:05:31][%mdl 8] New and interesting.} ({Predecessor:} 10. b3 Bb7 11. Be2 dxc4 12. bxc4 c5 13. O-O Rc8 14. Rd1 Qc7 15. Bb2 cxd4 16. Nxd4 {½-½ (93) Krasenkow,M (2671)-Bluebaum,M (2640) Wijk aan Zee 2018 CBM 183 [ChessBase II]}) 10... c5 {[%emt 0:10:26]} 11. dxc5 {[%emt 0:04:32]} bxc5 {[%emt 0:01:15]} 12. Bb2 {[%emt 0:03:19]} (12. cxd5 {with more complications.} Ne4 13. Qc2 exd5 14. bxc5 Bf5 15. Bd3) 12... Bb7 {[%emt 0:10:49]} 13. Be2 {[%emt 0:09:53]} cxb4 {[%emt 0:06:16]} 14. axb4 {[%emt 0:01:02]} dxc4 {[%emt 0:06:37]} 15. Qxc4 {[%emt 0:01:56]} Bd5 {[%emt 0:01:58]} 16. Qd3 {[%emt 0:10:23]} Rc8 {[%emt 0:20:49]} 17. O-O {[%emt 0:20:23]} Qb6 {[%emt 0:08:05]} 18. Qa3 {[%emt 0:07:18]} Bc4 {[%emt 0:04:04] [#]} 19. Bd4 $1 {[%emt 0:03:18] This bishop pair is nice.} Qb7 {[%emt 0:07:44]} (19... Qb5 20. Bxc4) 20. Bxc4 {[%emt 0:01:20]} Rxc4 {[%emt 0:00:10]} 21. Qd3 {[%emt 0:03:52]} Rcc8 {[%emt 0:08:40]} 22. b5 {[%emt 0:04:05]} (22. Rxa7 Qxb4 23. Rfa1 Nc6 $14) 22... Ra8 {[%emt 0:01:06]} 23. Ra5 {[%emt 0:03:14]} Rfd8 {[%emt 0:04:09]} 24. Qa3 {[%emt 0:02:05][%cal Ra5a7]} Rd5 {[%emt 0:01:54]} 25. Ra1 {[%emt 0:00:47]} (25. Bxa7 h6 $11) 25... Nc8 {[%emt 0:02:01]} 26. Qb2 {[%emt 0:03:31]} (26. Qb4 $16) 26... Ne8 {[%emt 0:01:18]} 27. e4 {[%emt 0:01:54]} Rd8 {[%emt 0:02:04]} 28. Ne5 $1 {[%emt 0:03:07]} Qxe4 {[%emt 0:01:00]} 29. Nc6 {[%emt 0:00:14]} (29. Bxa7 $2 Rxa7 30. Rxa7 Nxa7 $19) 29... Rd7 {[%emt 0:00:20]} 30. f3 $36 {[%emt 0:01:13][%mdl 3072] White has strong compensation. White is on the roll.} Qd5 {[%emt 0:01:18]} 31. Rc1 {[%emt 0:01:32] Strongly threatening b6.} Rb7 {[%emt 0:01:26] Inhibits b6.} 32. b6 {[%emt 0:02:45]} (32. Qe2 $16) 32... Qd7 $1 $11 {[%emt 0:00:40][%cal Rc8b6]} 33. Ne5 {[%emt 0:03:19]} Qd8 {[%emt 0:00:14]} 34. Nc6 {[%emt 0:00:25][%csl LRa7,LRd8]} Qd7 {[%emt 0:00:06][%cal Rc8b6]} 35. Qa3 {[%emt 0:01:58]} Ned6 $2 {[%emt 0:01:39][%mdl 8192] [#]} (35... Nxb6 $11 36. Bxb6 Rxb6 37. Ne7+ Kh8) 36. bxa7 $2 {[%emt 0:00:24]} (36. Bxg7 $1 $18 {[%mdl 512] and the rest is easy.} f5 37. Ba1 Nxb6 38. Qc3) 36... Nb5 $16 {[%emt 0:00:25]} 37. Rxb5 {[%emt 0:00:32]} Rxb5 $15 {[%emt 0:00:07]} 38. Qa6 {[%emt 0:00:31]} ({Better is} 38. Qa4 $15 Nd6 39. Be3) 38... Rb7 {[%emt 0:01:12][%cal Rc8a7]} 39. Be3 {[%emt 0:00:35] Hoping for Nb8.} (39. Ra1 $2 Rc7 40. Be3 Rxc6 $19) 39... Rc7 {[%emt 0:00:27][%cal Rc8a7]} ({Don't play} 39... Nxa7 $6 40. Nxa7 h6 41. Ra1 $15) 40. Bf4 $2 {[%emt 0:00:28]} ({White should play} 40. Qa5 $15 Kh8 41. Kf2 Raxa7 42. Nxa7 Rxc1 43. Bxc1 Qxa7+ 44. Qxa7 Nxa7 45. Ke3) 40... Raxa7 $2 {[%emt 0:01:18]} (40... e5 $1 $19 {[%cal Re5f4] and Black stays clearly on top.} 41. Bxe5 Raxa7) 41. Qc4 {[%emt 0:00:00]} (41. Nxa7 $17 {was called for.} Qd4+ 42. Kf1 Rxc1+ 43. Bxc1 Nxa7 44. Ke2) 41... Rxc6 $2 {[%emt 0:00:00]} 42. Qxc6 $17 {[%emt 0:00:00]} Qxc6 {[%emt 0:00:00]} 43. Rxc6 $19 {[%emt 0:00:00][%cal Rc6c8][%mdl 4096] Endgame KRB-KRN} Ne7 {[%emt 0:00:00]} 44. Rc2 {[%emt 0:00:00]} f6 {[%emt 0:00:00]} 45. g4 {[%emt 0:00:13]} g5 {[%emt 0:05:19]} 46. Bg3 {[%emt 0:00:50]} Ng6 {[%emt 0:04:50]} 47. Rc5 {[%emt 0:03:21]} e5 {[%emt 0:01:31]} 48. Rc6 {[%emt 0:00:35]} Kf7 {[%emt 0:00:23]} 49. Rb6 {[%emt 0:00:16]} Ra1+ {[%emt 0:02:10]} 50. Kg2 {[%emt 0:00:51]} Ra2+ {[%emt 0:00:55]} 51. Kf1 {[%emt 0:00:24] [#]} Nh4 $1 {[%emt 0:04:48]} 52. Rb3 {[%emt 0:15:29][%cal Of3f4]} Kg6 {[%emt 0:01:38] &Nero is more active.} 53. h3 {[%emt 0:00:23]} (53. Kg1 $17) 53... Ng2 {[%emt 0:01:47]} 54. Kg1 {[%emt 0:01:07]} Nf4 {[%emt 0:02:54]} 55. Bxf4 {[%emt 0:01:44]} gxf4 {[%emt 0:00:07] KR-KR} ({Weaker is} 55... exf4 56. Rb6 $17) 56. h4 {[%emt 0:10:30]} (56. Rb7) 56... h5 {[%emt 0:01:53] ...hxg4 is the strong threat. Black is clearly winning.} 57. g5 {[%emt 0:01:27]} fxg5 {[%emt 0:01:49]} 58. Rb6+ {[%emt 0:00:04]} Kf5 {[%emt 0:00:21]} 59. Rh6 {[%emt 0:00:34]} g4 {[%emt 0:01:49]} 60. Rxh5+ {[%emt 0:00:07]} Ke6 {[%emt 0:00:08]} 61. fxg4 {[%emt 0:00:14]} e4 {[%emt 0:01:57][%cal Be5e4,Be4e3][%mdl 32]} 62. Rh6+ {[%emt 0:01:35]} Ke5 {[%emt 0:00:20]} 63. g5 {[%emt 0:01:02]} e3 {[%emt 0:00:32]} 64. Rh8 {[%emt 0:00:47]} f3 {[%emt 0:00:23]} 65. g6 {[%emt 0:00:18]} Rg2+ {[%emt 0:00:20] What a bad dream for White.  Weighted Error Value: White=0.54/Black=0.22 (precise)} 0-1